[Event "EWCCC Online Preliminary-D 2020"]
[Site "Online"]
[Date "2020.12.19"]
[Round "3.2"]
[White "Berezovsky, Fiorina"]
[Black "Kordzadze, Nino"]
[Result "0-1"]
[ECO "C02"]
[WhiteElo "1665"]
[BlackElo "2015"]
[Annotator "NA"]
[PlyCount "82"]
[EventDate "2020.12.19"]
[EventType "team-tourn"]
[EventCountry "NET"]
[SourceTitle "playchess.com"]
[Source "ChessBase"]
[SourceQuality "1"]
[TimeControl "900+5"]

1. d4 {[%emt 0:00:04]} e6 {[%emt 0:10:28]} 2. e4 {[%emt 0:00:10]} d5 {[%emt 0:00:02]} 3. e5 {[%emt 0:00:03]} c5 {[%emt 0:00:02]} 4. c3 {[%emt 0:00:03]} Nc6 {[%emt 0:00:03]} 5. Nf3 {[%emt 0:00:04]} Bd7 {[%emt 0:00:02]} 6. Bb5 {[%emt 0:00:16]} Qb6 {[%emt 0:00:04]} 7. a4 {[%emt 0:00:19]} a6 {[%emt 0:00:02]} 8. Be2 {[%emt 0:00:06]} cxd4 {[%emt 0:00:07]} 9. cxd4 {[%emt 0:00:05]} Nge7 {[%emt 0:00:19]} 10. O-O {[%emt 0:00:05]} Nf5 {[%emt 0:00:05]} 11. a5 {[%emt 0:00:13]} Nxa5 {[%emt 0:00:40]} 12. Nc3 {[%emt 0:00:55]} Rc8 {[%emt 0:01:00]} 13. Na4 {[%emt 0:00:15]} Qc7 {[%emt 0:00:04]} 14. Bd2 {[%emt 0:00:17]} Nc4 {[%emt 0:00:24]} 15. b3 {[%emt 0:00:28]} Nxd2 {[%emt 0:00:02]} 16. Qxd2 {[%emt 0:00:04]} Be7 {[%emt 0:00:10]} 17. b4 {[%emt 0:00:05]} O-O {[%emt 0:00:06]} 18. Rac1 {[%emt 0:00:06]} Bc6 {[%emt 0:00:10]} 19. b5 {[%emt 0:00:12]} axb5 {[%emt 0:00:06]} 20. Bxb5 {[%emt 0:00:04]} Ra8 {[%emt 0:00:14]} 21. Bxc6 {[%emt 0:00:20]} bxc6 {[%emt 0:00:03]} 22. Ra1 {[%emt 0:00:15]} Rfb8 {[%emt 0:00:07]} 23. g4 {[%emt 0:00:21]} Nh6 {[%emt 0:00:20]} 24. h3 {[%emt 0:00:14]} f6 {[%emt 0:00:41]} 25. Rfe1 {[%emt 0:00:34]} Bb4 {[%emt 0:00:04]} 26. Nc3 {[%emt 0:00:38]} Rxa1 {[%emt 0:00:08]} 27. Rxa1 {[%emt 0:00:04]} Nf7 {[%emt 0:00:01]} 28. Qe3 {[%emt 0:00:11]} fxe5 {[%emt 0:00:12]} 29. dxe5 {[%emt 0:00:24]} c5 {[%emt 0:00:06]} 30. Nxd5 {[%emt 0:00:29]} exd5 {[%emt 0:00:08]} 31. e6 {[%emt 0:00:02]} Nd6 {[%emt 0:00:21]} 32. e7 {[%emt 0:00:07]} Ne4 {[%emt 0:00:11]} 33. Ng5 {[%emt 0:00:40]} Qxe7 {[%emt 0:00:08]} 34. Qf4 {[%emt 0:00:22]} Rf8 {[%emt 0:00:14]} 35. Ra8 {[%emt 0:03:23]} Rxa8 {[%emt 0:00:10]} 36. Qf5 {[%emt 0:00:27]} Qxg5 {[%emt 0:00:11]} 37. Qe6+ {[%emt 0:00:07]} Kh8 {[%emt 0:00:03]} 38. Qc6 {[%emt 0:00:14]} Rf8 {[%emt 0:00:03]} 39. f3 {[%emt 0:00:04]} Qe3+ {[%emt 0:00:04]} 40. Kh2 {[%emt 0:00:12]} Qf2+ {[%emt 0:00:05]} 41. Kh1 {[%emt 0:00:04]} Ng3# {[%emt 0:00:01]} 0-1

[Event "EWCCC Online Preliminary-D 2020"]
[Site "Online"]
[Date "2020.12.19"]
[Round "3.3"]
[White "Corke, Anya S"]
[Black "Dubovyk, Anastasiia"]
[Result "0-1"]
[ECO "A45"]
[WhiteElo "2255"]
[BlackElo "1971"]
[Annotator "NA"]
[PlyCount "98"]
[EventDate "2020.12.19"]
[EventType "team-tourn"]
[EventCountry "NET"]
[SourceTitle "playchess.com"]
[Source "ChessBase"]
[SourceQuality "1"]
[TimeControl "900+5"]

1. d4 {[%emt 0:00:00]} Nf6 {[%emt 0:00:03]} 2. Bg5 {[%emt 0:00:04]} Ne4 {[%emt 0:00:03]} 3. Bf4 {[%emt 0:00:03]} d5 {[%emt 0:00:10]} 4. f3 {[%emt 0:00:04]} Nf6 {[%emt 0:00:02]} 5. e4 {[%emt 0:00:02]} dxe4 {[%emt 0:00:12]} 6. Nc3 {[%emt 0:00:02]} exf3 {[%emt 0:00:03]} 7. Nxf3 {[%emt 0:00:02]} Bg4 {[%emt 0:00:03]} 8. Bc4 {[%emt 0:00:12]} e6 {[%emt 0:00:03]} 9. Qe2 {[%emt 0:00:29]} Nc6 {[%emt 0:00:07]} 10. O-O-O {[%emt 0:00:17]} Be7 {[%emt 0:00:05]} 11. h3 {[%emt 0:00:21]} Bxf3 {[%emt 0:00:06]} 12. Qxf3 {[%emt 0:00:02]} O-O {[%emt 0:00:07]} 13. g4 {[%emt 0:01:24]} Nxd4 {[%emt 0:00:20]} 14. Qxb7 {[%emt 0:00:14]} c5 {[%emt 0:00:13]} 15. Nb5 {[%emt 0:00:57]} a6 {[%emt 0:00:32]} 16. Nc7 {[%emt 0:01:14]} Qd7 {[%emt 0:00:32]} 17. c3 {[%emt 0:01:06]} Rfb8 {[%emt 0:01:29]} 18. Qg2 {[%emt 0:01:52]} Ra7 {[%emt 0:00:12]} 19. cxd4 {[%emt 0:00:15]} Rxc7 {[%emt 0:00:17]} 20. Bxc7 {[%emt 0:00:05]} Qxc7 {[%emt 0:00:03]} 21. Kb1 {[%emt 0:01:27]} cxd4 {[%emt 0:00:30]} 22. Bb3 {[%emt 0:01:11]} Qd7 {[%emt 0:01:03]} 23. g5 {[%emt 0:00:13]} Ne8 {[%emt 0:00:17]} 24. Qg4 {[%emt 0:00:29]} Rb4 {[%emt 0:02:20]} 25. Rhf1 {[%emt 0:01:01]} Nc7 {[%emt 0:00:19]} 26. h4 {[%emt 0:00:48]} a5 {[%emt 0:00:05]} 27. Qf3 {[%emt 0:00:35]} Bf8 {[%emt 0:00:23]} 28. Qd3 {[%emt 0:00:29]} a4 {[%emt 0:00:07]} 29. Bc2 {[%emt 0:00:03]} g6 {[%emt 0:00:10]} 30. a3 {[%emt 0:00:02]} Rb8 {[%emt 0:00:46]} 31. Qxd4 {[%emt 0:00:16]} Qxd4 {[%emt 0:00:16]} 32. Rxd4 {[%emt 0:00:02]} Bxa3 {[%emt 0:00:02]} 33. Rxa4 {[%emt 0:00:08]} Bxb2 {[%emt 0:00:09]} 34. Ka2 {[%emt 0:00:04]} Nd5 {[%emt 0:00:08]} 35. Rf3 {[%emt 0:01:04]} Nc3+ {[%emt 0:00:42]} 36. Rxc3 {[%emt 0:00:03]} Bxc3 {[%emt 0:00:01]} 37. Bb3 {[%emt 0:00:10]} Rb7 {[%emt 0:00:19]} 38. Rc4 {[%emt 0:00:08]} Be1 {[%emt 0:00:10]} 39. Re4 {[%emt 0:00:09]} Bg3 {[%emt 0:00:13]} 40. Rg4 {[%emt 0:00:22]} Bh2 {[%emt 0:00:08]} 41. h5 {[%emt 0:00:08]} gxh5 {[%emt 0:00:23]} 42. Rh4 {[%emt 0:00:02]} Be5 {[%emt 0:00:24]} 43. Rxh5 {[%emt 0:00:03]} Ra7+ {[%emt 0:00:05]} 44. Kb1 {[%emt 0:00:03]} Ra1+ {[%emt 0:00:02]} 45. Kc2 {[%emt 0:00:01]} Rg1 {[%emt 0:00:04]} 46. g6 {[%emt 0:00:12]} Rg2+ {[%emt 0:00:29]} 47. Kd3 {[%emt 0:00:16]} Rg3+ {[%emt 0:00:13]} 48. Ke4 {[%emt 0:00:16]} hxg6 {[%emt 0:00:08]} 49. Rxe5 {[%emt 0:00:15]} Rxb3 {[%emt 0:00:02]} 0-1

[Event "EWCCC Online Preliminary-D 2020"]
[Site "Online"]
[Date "2020.12.19"]
[Round "3.3"]
[White "Grigoryan, Meri"]
[Black "Mashchenko, Tamila"]
[Result "1-0"]
[ECO "E90"]
[WhiteElo "2044"]
[BlackElo "1768"]
[Annotator "NA"]
[PlyCount "65"]
[EventDate "2020.12.19"]
[EventType "team-tourn"]
[EventCountry "NET"]
[SourceTitle "playchess.com"]
[Source "ChessBase"]
[SourceQuality "1"]
[TimeControl "900+5"]

1. d4 {[%emt 0:00:00]} Nf6 {[%emt 0:00:05]} 2. c4 {[%emt 0:00:05]} g6 {[%emt 0:00:02]} 3. Nc3 {[%emt 0:00:03]} Bg7 {[%emt 0:00:03]} 4. e4 {[%emt 0:00:04]} d6 {[%emt 0:00:03]} 5. h3 {[%emt 0:00:02]} O-O {[%emt 0:00:04]} 6. Nf3 {[%emt 0:00:04]} Nbd7 {[%emt 0:00:03]} 7. Bg5 {[%emt 0:00:13]} h6 {[%emt 0:00:04]} 8. Be3 {[%emt 0:00:10]} e5 {[%emt 0:00:03]} 9. d5 {[%emt 0:01:49]} Nc5 {[%emt 0:00:50]} 10. Bd3 {[%emt 0:01:03]} Nxd3+ {[%emt 0:00:09]} 11. Qxd3 {[%emt 0:00:02]} Nh5 {[%emt 0:00:04]} 12. Qd2 {[%emt 0:01:14]} Kh7 {[%emt 0:00:29]} 13. g4 {[%emt 0:00:08]} Nf4 {[%emt 0:03:58]} 14. O-O-O {[%emt 0:04:29]} f5 {[%emt 0:01:21]} 15. gxf5 {[%emt 0:02:02]} gxf5 {[%emt 0:00:05]} 16. Bxf4 {[%emt 0:02:32]} exf4 {[%emt 0:02:36]} 17. Nd4 {[%emt 0:00:29]} fxe4 {[%emt 0:00:14]} 18. Nxe4 {[%emt 0:00:14]} a5 {[%emt 0:00:48]} 19. Rdg1 {[%emt 0:00:35]} Qe7 {[%emt 0:00:19]} 20. Nc3 {[%emt 0:01:08]} a4 {[%emt 0:00:46]} 21. Qd3+ {[%emt 0:00:06]} Kh8 {[%emt 0:00:13]} 22. a3 {[%emt 0:00:05]} Qf6 {[%emt 0:00:13]} 23. Nce2 {[%emt 0:00:06]} f3 {[%emt 0:00:18]} 24. Rxg7 {[%emt 0:00:02]} Qxg7 {[%emt 0:00:11]} 25. Ng3 {[%emt 0:00:02]} Qg5+ {[%emt 0:00:43]} 26. Kb1 {[%emt 0:00:05]} Bd7 {[%emt 0:01:06]} 27. Qc3 {[%emt 0:00:05]} Qg7 {[%emt 0:00:24]} 28. Nh5 {[%emt 0:00:08]} Qe5 {[%emt 0:00:39]} 29. Re1 {[%emt 0:00:02]} Bf5+ {[%emt 0:00:36]} 30. Ka2 {[%emt 0:00:10]} Be4 {[%emt 0:00:07]} 31. Rxe4 {[%emt 0:00:11]} Qxe4 {[%emt 0:00:20]} 32. Nxf3+ {[%emt 0:00:03]} Kg8 {[%emt 0:00:21]} 33. Qg7# {[%emt 0:00:03]} 1-0

[Event "EWCCC Online Preliminary-D 2020"]
[Site "Online"]
[Date "2020.12.19"]
[Round "3.3"]
[White "Prasol, Aliesia"]
[Black "Fink-Nunn, Petra"]
[Result "0-1"]
[ECO "C55"]
[WhiteElo "1702"]
[BlackElo "1966"]
[Annotator "NA"]
[PlyCount "66"]
[EventDate "2020.12.19"]
[EventType "team-tourn"]
[EventCountry "NET"]
[SourceTitle "playchess.com"]
[Source "ChessBase"]
[SourceQuality "1"]
[TimeControl "900+5"]

1. e4 {[%emt 0:00:09]} e5 {[%emt 0:00:03]} 2. Nf3 {[%emt 0:00:03]} Nc6 {[%emt 0:00:02]} 3. Bc4 {[%emt 0:00:02]} Nf6 {[%emt 0:00:05]} 4. d3 {[%emt 0:00:05]} Be7 {[%emt 0:00:04]} 5. O-O {[%emt 0:00:01]} O-O {[%emt 0:00:03]} 6. h3 {[%emt 0:00:11]} d6 {[%emt 0:00:48]} 7. Be3 {[%emt 0:00:09]} Na5 {[%emt 0:00:23]} 8. Bb3 {[%emt 0:00:05]} Nxb3 {[%emt 0:00:14]} 9. axb3 {[%emt 0:00:03]} h6 {[%emt 0:01:03]} 10. Nc3 {[%emt 0:00:14]} c5 {[%emt 0:01:12]} 11. Qd2 {[%emt 0:00:22]} Be6 {[%emt 0:00:38]} 12. Ra2 {[%emt 0:00:24]} Re8 {[%emt 0:00:15]} 13. Rfa1 {[%emt 0:00:04]} a6 {[%emt 0:00:04]} 14. Ne2 {[%emt 0:00:40]} Qd7 {[%emt 0:00:16]} 15. Ra3 {[%emt 0:00:07]} Bd8 {[%emt 0:01:10]} 16. b4 {[%emt 0:00:10]} c4 {[%emt 0:01:15]} 17. dxc4 {[%emt 0:00:39]} Nxe4 {[%emt 0:00:59]} 18. Qd3 {[%emt 0:00:16]} Bf5 {[%emt 0:00:30]} 19. Qd5 {[%emt 0:00:21]} Nf6 {[%emt 0:00:29]} 20. Qd2 {[%emt 0:00:05]} Rc8 {[%emt 0:00:36]} 21. b3 {[%emt 0:00:16]} d5 {[%emt 0:00:16]} 22. Bc5 {[%emt 0:02:26]} b6 {[%emt 0:00:37]} 23. Rxa6 {[%emt 0:00:04]} bxc5 {[%emt 0:00:04]} 24. Ra7 {[%emt 0:00:02]} Rc7 {[%emt 0:00:40]} 25. Rxc7 {[%emt 0:00:15]} Qxc7 {[%emt 0:00:27]} 26. bxc5 {[%emt 0:00:21]} Qxc5 {[%emt 0:00:41]} 27. Ng3 {[%emt 0:00:06]} Bg6 {[%emt 0:00:32]} 28. Ra8 {[%emt 0:01:06]} Qc6 {[%emt 0:00:38]} 29. Ra4 {[%emt 0:00:14]} Bb6 {[%emt 0:00:57]} 30. c3 {[%emt 0:00:14]} Rd8 {[%emt 0:00:19]} 31. Nxe5 {[%emt 0:00:12]} Qc5 {[%emt 0:00:30]} 32. b4 {[%emt 0:02:23]} Qc7 {[%emt 0:00:04]} 33. Qe2 {[%emt 0:00:10]} Re8 {[%emt 0:00:10]} 0-1

[Event "EWCCC Online Preliminary-D 2020"]
[Site "Online"]
[Date "2020.12.19"]
[Round "3.4"]
[White "Narva, Triin"]
[Black "Pipia, Ekaterine"]
[Result "0-1"]
[ECO "B25"]
[WhiteElo "2100"]
[BlackElo "2019"]
[Annotator "NA"]
[PlyCount "60"]
[EventDate "2020.12.19"]
[EventType "team-tourn"]
[EventCountry "NET"]
[SourceTitle "playchess.com"]
[Source "ChessBase"]
[SourceQuality "1"]
[TimeControl "900+5"]

1. e4 {[%emt 0:00:00]} c5 {[%emt 0:00:02]} 2. Nc3 {[%emt 0:00:14]} Nc6 {[%emt 0:00:05]} 3. g3 {[%emt 0:00:01]} g6 {[%emt 0:00:01]} 4. Bg2 {[%emt 0:00:02]} Bg7 {[%emt 0:00:01]} 5. d3 {[%emt 0:00:01]} d6 {[%emt 0:00:30]} 6. Nge2 {[%emt 0:00:11]} e6 {[%emt 0:00:16]} 7. O-O {[%emt 0:00:08]} Nge7 {[%emt 0:00:01]} 8. f4 {[%emt 0:00:01]} O-O {[%emt 0:00:02]} 9. g4 {[%emt 0:00:04]} f5 {[%emt 0:01:10]} 10. h3 {[%emt 0:01:55]} a6 {[%emt 0:00:27]} 11. a4 {[%emt 0:00:06]} Kh8 {[%emt 0:00:18]} 12. Kh1 {[%emt 0:00:45]} e5 {[%emt 0:00:26]} 13. gxf5 {[%emt 0:02:27]} gxf5 {[%emt 0:00:04]} 14. Ng3 {[%emt 0:01:08]} exf4 {[%emt 0:01:17]} 15. Bxf4 {[%emt 0:00:15]} Ng6 {[%emt 0:00:32]} 16. Qh5 {[%emt 0:00:52]} Nxf4 {[%emt 0:03:14]} 17. Rxf4 {[%emt 0:00:07]} Rf6 {[%emt 0:00:40]} 18. Nxf5 {[%emt 0:00:34]} Bxf5 {[%emt 0:00:03]} 19. Rxf5 {[%emt 0:00:25]} Rh6 {[%emt 0:00:08]} 20. Qf7 {[%emt 0:00:58]} Nd4 {[%emt 0:01:12]} 21. Rf2 {[%emt 0:00:17]} Qh4 {[%emt 0:00:52]} 22. Raf1 {[%emt 0:05:09]} Be5 {[%emt 0:02:15]} 23. Qd7 {[%emt 0:00:59]} Ne6 {[%emt 0:01:04]} 24. Ne2 {[%emt 0:00:10]} Rg8 {[%emt 0:00:22]} 25. Rf3 {[%emt 0:00:09]} Qg5 {[%emt 0:00:47]} 26. Rg1 {[%emt 0:00:04]} Rg7 {[%emt 0:00:39]} 27. Qc8+ {[%emt 0:00:03]} Rg8 {[%emt 0:00:01]} 28. Qxb7 {[%emt 0:00:01]} Nd4 {[%emt 0:00:19]} 29. Nxd4 {[%emt 0:00:13]} Bxd4 {[%emt 0:00:04]} 30. Qf7 {[%emt 0:00:05]} Bxg1 {[%emt 0:00:07]} 0-1

[Event "EWCCC Online Preliminary-D 2020"]
[Site "Online"]
[Date "2020.12.19"]
[Round "3.4"]
[White "Lomaia, Diana"]
[Black "Olde, Grete"]
[Result "1/2-1/2"]
[ECO "E05"]
[WhiteElo "1946"]
[BlackElo "1915"]
[Annotator "NA"]
[PlyCount "64"]
[EventDate "2020.12.19"]
[EventType "team-tourn"]
[EventCountry "NET"]
[SourceTitle "playchess.com"]
[Source "ChessBase"]
[SourceQuality "1"]
[TimeControl "900+5"]

1. d4 {[%emt 0:00:00]} d5 {[%emt 0:00:03]} 2. c4 {[%emt 0:00:03]} e6 {[%emt 0:00:04]} 3. Nf3 {[%emt 0:00:07]} Nf6 {[%emt 0:00:04]} 4. g3 {[%emt 0:00:01]} Be7 {[%emt 0:00:03]} 5. Bg2 {[%emt 0:00:05]} O-O {[%emt 0:00:03]} 6. O-O {[%emt 0:00:05]} dxc4 {[%emt 0:00:15]} 7. Qc2 {[%emt 0:00:09]} a6 {[%emt 0:00:03]} 8. a4 {[%emt 0:00:02]} Bd7 {[%emt 0:00:34]} 9. Ne5 {[%emt 0:00:05]} Bc6 {[%emt 0:00:44]} 10. Nxc6 {[%emt 0:00:04]} Nxc6 {[%emt 0:00:06]} 11. e3 {[%emt 0:00:02]} Na5 {[%emt 0:01:13]} 12. Nd2 {[%emt 0:00:21]} c5 {[%emt 0:00:22]} 13. dxc5 {[%emt 0:01:25]} Bxc5 {[%emt 0:00:20]} 14. Nxc4 {[%emt 0:02:39]} Rc8 {[%emt 0:02:47]} 15. Nxa5 {[%emt 0:01:57]} Qxa5 {[%emt 0:00:12]} 16. Qe2 {[%emt 0:01:15]} Rc7 {[%emt 0:01:59]} 17. Bd2 {[%emt 0:03:51]} Bb4 {[%emt 0:00:48]} 18. Bxb4 {[%emt 0:00:23]} Qxb4 {[%emt 0:00:06]} 19. Rac1 {[%emt 0:01:22]} Rfc8 {[%emt 0:00:35]} 20. Rxc7 {[%emt 0:00:11]} Rxc7 {[%emt 0:00:03]} 21. Qd3 {[%emt 0:00:12]} Rd7 {[%emt 0:01:01]} 22. Qc2 {[%emt 0:00:13]} g6 {[%emt 0:00:20]} 23. Rc1 {[%emt 0:00:24]} Kg7 {[%emt 0:00:52]} 24. b3 {[%emt 0:01:09]} Rd2 {[%emt 0:01:30]} 25. Qc4 {[%emt 0:00:04]} Qb6 {[%emt 0:00:46]} 26. Bf3 {[%emt 0:00:13]} Rb2 {[%emt 0:00:16]} 27. Rc3 {[%emt 0:00:07]} h5 {[%emt 0:00:57]} 28. h4 {[%emt 0:00:06]} Rb1+ {[%emt 0:00:06]} 29. Kg2 {[%emt 0:00:05]} Rb2 {[%emt 0:00:10]} 30. Kg1 {[%emt 0:00:21]} Rb1+ {[%emt 0:00:30]} 31. Kg2 {[%emt 0:00:03]} Rb2 {[%emt 0:00:01]} 32. Kg1 {[%emt 0:00:02]} Rb1+ {[%emt 0:00:02]} 1/2-1/2

[Event "EWCCC Online Preliminary-D 2020"]
[Site "Online"]
[Date "2020.12.19"]
[Round "3.4"]
[White "Esadze, Tamari"]
[Black "Olde, Margareth"]
[Result "1-0"]
[ECO "C95"]
[WhiteElo "1889"]
[BlackElo "2233"]
[Annotator "NA"]
[PlyCount "87"]
[EventDate "2020.12.19"]
[EventType "team-tourn"]
[EventCountry "NET"]
[SourceTitle "playchess.com"]
[Source "ChessBase"]
[SourceQuality "1"]
[TimeControl "900+5"]

1. e4 {[%emt 0:00:00]} e5 {[%emt 0:00:03]} 2. Nf3 {[%emt 0:00:04]} Nc6 {[%emt 0:00:02]} 3. Bb5 {[%emt 0:00:04]} a6 {[%emt 0:00:01]} 4. Ba4 {[%emt 0:00:03]} Nf6 {[%emt 0:00:02]} 5. O-O {[%emt 0:00:06]} Be7 {[%emt 0:00:02]} 6. Re1 {[%emt 0:00:06]} b5 {[%emt 0:00:06]} 7. Bb3 {[%emt 0:00:02]} d6 {[%emt 0:00:03]} 8. c3 {[%emt 0:00:03]} O-O {[%emt 0:00:02]} 9. h3 {[%emt 0:00:02]} Nb8 {[%emt 0:00:01]} 10. d4 {[%emt 0:00:06]} Nbd7 {[%emt 0:00:03]} 11. Nbd2 {[%emt 0:00:11]} c5 {[%emt 0:00:02]} 12. Nf1 {[%emt 0:00:16]} Re8 {[%emt 0:00:03]} 13. Ng3 {[%emt 0:00:04]} Bf8 {[%emt 0:00:09]} 14. Bg5 {[%emt 0:00:15]} h6 {[%emt 0:00:27]} 15. Bxf6 {[%emt 0:00:19]} Qxf6 {[%emt 0:00:17]} 16. a4 {[%emt 0:00:14]} Rb8 {[%emt 0:00:27]} 17. axb5 {[%emt 0:00:12]} axb5 {[%emt 0:00:04]} 18. Bd5 {[%emt 0:00:47]} Bb7 {[%emt 0:01:16]} 19. Ra7 {[%emt 0:00:28]} Bxd5 {[%emt 0:00:29]} 20. exd5 {[%emt 0:00:01]} Rbd8 {[%emt 0:03:37]} 21. Ne4 {[%emt 0:00:40]} Qg6 {[%emt 0:00:43]} 22. Nh4 {[%emt 0:01:07]} Qh7 {[%emt 0:00:02]} 23. Rxd7 {[%emt 0:00:31]} Rxd7 {[%emt 0:00:34]} 24. Nf6+ {[%emt 0:00:02]} gxf6 {[%emt 0:00:04]} 25. Qg4+ {[%emt 0:00:03]} Kh8 {[%emt 0:01:55]} 26. Qxd7 {[%emt 0:00:05]} Ra8 {[%emt 0:00:10]} 27. dxc5 {[%emt 0:00:38]} dxc5 {[%emt 0:00:08]} 28. d6 {[%emt 0:00:31]} Kg8 {[%emt 0:02:42]} 29. Nf5 {[%emt 0:00:48]} h5 {[%emt 0:00:23]} 30. Ne7+ {[%emt 0:00:45]} Kh8 {[%emt 0:00:10]} 31. Nc6 {[%emt 0:01:21]} Qd3 {[%emt 0:01:44]} 32. Qb7 {[%emt 0:00:56]} Qd2 {[%emt 0:01:30]} 33. Rf1 {[%emt 0:00:35]} Bxd6 {[%emt 0:00:04]} 34. Qxa8+ {[%emt 0:00:07]} Kg7 {[%emt 0:00:02]} 35. Nd8 {[%emt 0:00:32]} e4 {[%emt 0:00:05]} 36. Qxe4 {[%emt 0:00:08]} Be5 {[%emt 0:00:09]} 37. Nc6 {[%emt 0:00:12]} Bc7 {[%emt 0:00:07]} 38. Qe3 {[%emt 0:00:21]} Qd5 {[%emt 0:00:12]} 39. Ne7 {[%emt 0:00:06]} Qd7 {[%emt 0:00:03]} 40. Re1 {[%emt 0:00:12]} Kh7 {[%emt 0:00:05]} 41. Qe4+ {[%emt 0:00:06]} Kh8 {[%emt 0:00:02]} 42. Nf5 {[%emt 0:00:05]} Qd2 {[%emt 0:00:05]} 43. Qe8+ {[%emt 0:00:05]} Kh7 {[%emt 0:00:01]} 44. Qxf7+ {[%emt 0:00:01]} 1-0

[Event "EWCCC Online Preliminary-D 2020"]
[Site "Online"]
[Date "2020.12.19"]
[Round "4.1"]
[White "Olde, Margareth"]
[Black "Tsirulnik, Maritsa"]
[Result "0-1"]
[ECO "A13"]
[WhiteElo "2233"]
[BlackElo "2139"]
[Annotator "ChessBase"]
[PlyCount "148"]
[EventDate "2020.12.19"]
[EventType "team-tourn"]
[EventCountry "NET"]
[SourceTitle "playchess.com"]
[Source "ChessBase"]
[SourceQuality "1"]
[TimeControl "900+5"]

1. c4 {[%emt 0:00:00]} e6 {[%emt 0:00:04]} 2. Nf3 {[%emt 0:00:07]} d5 {[%emt 0:00:07]} 3. g3 {[%emt 0:00:09]} Nf6 {[%emt 0:00:26]} 4. Bg2 {[%emt 0:00:03]} dxc4 {[%emt 0:00:24]} 5. Qa4+ {[%emt 0:00:08]} Nbd7 {[%emt 0:00:31]} 6. Qxc4 {[%emt 0:00:43]} a6 {[%emt 0:00:31]} 7. Qc2 {[%emt 0:00:24]} c5 {[%emt 0:00:06]} 8. O-O {[%emt 0:00:13]} Be7 {[%emt 0:00:16]} 9. Nc3 {[%emt 0:00:43]} O-O {[%emt 0:00:05]} 10. d3 {[%emt 0:00:40]} Nd5 {[%emt 0:00:36]} 11. Nxd5 {[%emt 0:00:47]} exd5 {[%emt 0:00:02]} 12. Bf4 {[%emt 0:00:59]} Nf6 {[%emt 0:00:12]} 13. a4 {[%emt 0:00:56]} d4 {[%emt 0:00:28]} 14. Ne5 {[%emt 0:00:41]} Nd5 {[%emt 0:00:10]} 15. Bd2 {[%emt 0:00:08]} Be6 {[%emt 0:00:52]} 16. a5 {[%emt 0:00:32]} Rc8 {[%emt 0:01:54]} 17. Nc4 {[%emt 0:00:12]} Qd7 {[%emt 0:00:17]} 18. Bxd5 {[%emt 0:00:55]} Bxd5 {[%emt 0:00:08]} 19. Nb6 {[%emt 0:00:02]} Qf5 {[%emt 0:00:15]} 20. Nxc8 {[%emt 0:00:25]} Rxc8 {[%emt 0:00:02]} 21. e4 {[%emt 0:00:27]} dxe3 {[%emt 0:00:04]} 22. fxe3 {[%emt 0:00:02]} Qg6 {[%emt 0:01:01]} 23. e4 {[%emt 0:00:11]} Be6 {[%emt 0:00:16]} 24. Bf4 {[%emt 0:00:42]} h5 {[%emt 0:00:25]} 25. Kh1 {[%emt 0:00:36]} Bf6 {[%emt 0:00:38]} 26. Rad1 {[%emt 0:01:29]} Bd4 {[%emt 0:00:16]} 27. b3 {[%emt 0:00:13]} Bh3 {[%emt 0:00:34]} 28. Rfe1 {[%emt 0:00:06]} Bg4 {[%emt 0:00:02]} 29. Be3 {[%emt 0:02:01]} Bxd1 {[%emt 0:01:42]} 30. Qxd1 {[%emt 0:00:04]} Bxe3 {[%emt 0:00:05]} 31. Rxe3 {[%emt 0:00:02]} Qf6 {[%emt 0:00:04]} 32. Qf3 {[%emt 0:00:46]} Qa1+ {[%emt 0:00:23]} 33. Kg2 {[%emt 0:00:04]} Qb2+ {[%emt 0:00:03]} 34. Kh3 {[%emt 0:00:41]} Qxb3 {[%emt 0:00:03]} 35. Qxh5 {[%emt 0:00:15]} Rc6 {[%emt 0:00:07]} 36. Qe2 {[%emt 0:00:43]} Qc3 {[%emt 0:00:32]} 37. e5 {[%emt 0:00:04]} Re6 {[%emt 0:00:28]} 38. Re4 {[%emt 0:00:20]} Qxa5 {[%emt 0:00:07]} 39. Rh4 {[%emt 0:00:02]} Qc7 {[%emt 0:00:20]} 40. Qe4 {[%emt 0:00:37]} g6 {[%emt 0:00:16]} 41. d4 {[%emt 0:00:07]} cxd4 {[%emt 0:00:11]} 42. Qxd4 {[%emt 0:00:01]} Qxe5 {[%emt 0:00:49]} 43. Qd8+ {[%emt 0:00:03]} Re8 {[%emt 0:00:01]} 44. Qd1 {[%emt 0:00:09]} Qe6+ {[%emt 0:00:06]} 45. Rg4 {[%emt 0:00:06]} Qe2 {[%emt 0:00:07]} 46. Qd6 {[%emt 0:00:04]} Qf1+ {[%emt 0:00:25]} 47. Kh4 {[%emt 0:00:02]} Qf5 {[%emt 0:00:06]} 48. Rg5 {[%emt 0:00:03]} Re4+ {[%emt 0:00:07]} 49. g4 {[%emt 0:00:02]} Qf2+ {[%emt 0:00:07]} 50. Qg3 {[%emt 0:00:06]} Qxg3+ {[%emt 0:00:05]} 51. Kxg3 {[%emt 0:00:01]} b5 {[%emt 0:00:12]} 52. Kf3 {[%emt 0:00:04]} Re6 {[%emt 0:00:05]} 53. h4 {[%emt 0:00:08]} Kg7 {[%emt 0:00:08]} 54. Rc5 {[%emt 0:00:05]} Rb6 {[%emt 0:00:10]} 55. Ke2 {[%emt 0:00:07]} a5 {[%emt 0:00:10]} 56. Kd2 {[%emt 0:00:02]} a4 {[%emt 0:00:04]} 57. Kc3 {[%emt 0:00:04]} b4+ {[%emt 0:00:02]} 58. Kb2 {[%emt 0:00:02]} b3 {[%emt 0:00:15]} 59. Ra5 {[%emt 0:00:07]} Rb4 {[%emt 0:00:03]} 60. h5 {[%emt 0:00:04]} Rxg4 {[%emt 0:00:04]} 61. hxg6 {[%emt 0:00:02]} Kxg6 {[%emt 0:00:07]} 62. Ka3 {[%emt 0:00:02]} f5 {[%emt 0:00:04]} 63. Rb5 {[%emt 0:00:07]} Re4 {[%emt 0:00:03]} 64. Rb8 {[%emt 0:00:05]} f4 {[%emt 0:00:04]} 65. Kb2 {[%emt 0:00:04]} Kg5 {[%emt 0:00:03]} 66. Kc3 {[%emt 0:00:02]} f3 {[%emt 0:00:15]} 67. Kd3 {[%emt 0:00:04]} Re2 {[%emt 0:00:12]} 68. Rb5+ {[%emt 0:00:05]} Kg4 {[%emt 0:00:02]} 69. Rb4+ {[%emt 0:00:03]} Kg3 {[%emt 0:00:02]} 70. Rxa4 {[%emt 0:00:01]} b2 {[%emt 0:00:02]} 71. Rb4 {[%emt 0:00:03]} Kf2 {[%emt 0:00:06]} 72. Rb8 {[%emt 0:00:31]} Ke1 {[%emt 0:00:04]} 73. Kc3 {[%emt 0:00:09]} f2 {[%emt 0:00:03]} 74. Rh8 {[%emt 0:00:05]} f1=Q {[%emt 0:00:03]} 0-1